fUSD/lending_fUSD_20250219
["ID","MTS","AMOUNT","RATE_DAILY","PERIOD"]
[353714023,1739995865693,-962.32,0.00011983,2]
[353714024,1739995865702,-538.45,0.00011983,2]
[353714025,1739995865712,-509.59,0.00011983,2]
[353714026,1739995865721,-500.0,0.00011983,2]
[353714027,1739995865731,-546.67,0.00011983,2]
[353714028,1739995865742,-840.65,0.00011983,2]
[353714029,1739995865752,-500.0,0.00011983,2]
[353714030,1739995865761,-1437.42,0.00011983,2]
[353714031,1739995865770,-1356.54,0.00011983,2]
[353714032,1739995865779,-507.93551062,0.00011983,2]
[353714033,1739995865788,-500.0,0.00011983,2]
[353714034,1739995865798,-785.45,0.00011983,2]
[353714035,1739995865807,-500.0,0.00011983,2]
[353714036,1739995865817,-1209.73,0.00011983,2]
[353714037,1739995865826,-690.95,0.00011983,2]
[353714038,1739995865835,-1489.16,0.00011983,2]
[353714039,1739995865845,-807.67,0.00011983,2]
[353714040,1739995865855,-1423.58,0.00011983,2]
[353714041,1739995865865,-843.14,0.00011983,2]
[353714042,1739995865874,-677.57,0.00011983,2]
[353714043,1739995865884,-945.16,0.00011983,2]
[353714044,1739995865893,-3452.77,0.00011983,2]
[353714045,1739995865905,-752.33,0.00011983,2]
[353714046,1739995865914,-815.95,0.00011983,2]
[353714047,1739995865924,-932.21,0.00011983,2]
[353714048,1739995865934,-626.91,0.00011983,2]
[353714049,1739995865946,-662.97,0.00011983,2]
[353714050,1739995865955,-787.68,0.00011983,2]
[353714051,1739995865964,-1571.8,0.00011983,2]
[353714052,1739995865974,-643.58,0.00011983,2]
[353714053,1739995865983,-737.13,0.00011983,2]
[353714054,1739995865992,-500.0,0.00011983,2]
[353714055,1739995866002,-740.58,0.00011983,2]
[353714056,1739995866011,-584.39,0.00011983,2]
[353714057,1739995866020,-715.97,0.00011983,2]
[353714058,1739995866029,-734.84,0.00011983,2]
[353714059,1739995866038,-802.39,0.00011983,2]
[353714060,1739995866048,-697.67,0.00011983,2]
[353714061,1739995866057,-756.21,0.00011983,2]
[353714062,1739995866067,-500.0,0.00011983,2]
[353714063,1739995866076,-500.0,0.00011983,2]
[353714064,1739995866089,-937.95,0.00011983,2]
[353714065,1739995866099,-716.59,0.00011983,2]
[353714066,1739995866108,-588.54,0.00011983,2]
[353714067,1739995866118,-500.0,0.00011983,2]
[353714068,1739995866129,-1087.14,0.00011983,2]
[353714069,1739995866138,-615.01,0.00011983,2]
[353714070,1739995866147,-363.08509281,0.00011983,2]
[353714071,1739995866158,-743.19,0.00011983,2]
[353714072,1739995866167,-1762.82,0.00011983,2]
[353714073,1739995866177,-1029.99,0.00011983,2]
[353714074,1739995866187,-963.52,0.00011983,2]
[353714075,1739995866196,-1039.67,0.00011983,2]
[353714076,1739995866205,-500.0,0.00011983,2]
[353714077,1739995866214,-500.0,0.00011983,2]
[353714078,1739995866223,-500.0,0.00011983,2]
[353714079,1739995866233,-1014.84,0.00011983,2]
[353714080,1739995866242,-898.51,0.00011983,2]
[353714081,1739995866251,-1434.81,0.00011983,2]
[353714082,1739995866261,-802.62,0.00011983,2]
[353714083,1739995866270,-1157.13,0.00011983,2]
[353714084,1739995866280,-1176.33,0.00011983,2]
[353714085,1739995866290,-1126.62,0.00011983,2]
[353714086,1739995866299,-588.95,0.00011983,2]
[353714087,1739995866308,-500.0,0.00011983,2]
[353714088,1739995866317,-500.0,0.00011983,2]
[353714089,1739995866327,-865.56,0.00011983,2]
[353714090,1739995866336,-1010.38,0.00011983,2]
[353714091,1739995866346,-500.0,0.00011983,2]
[353714092,1739995866357,-692.91,0.00011983,2]
[353714093,1739995866366,-500.0,0.00011983,2]
[353714094,1739995866376,-500.0,0.00011983,2]
[353714095,1739995866385,-704.62,0.00011983,2]
[353714096,1739995866395,-500.0,0.00011983,2]
[353714097,1739995866405,-1732.65,0.00011983,2]
[353714098,1739995866414,-500.0,0.00011983,2]
[353714099,1739995866425,-920.03,0.00011983,2]
[353714100,1739995866434,-581.74,0.00011983,2]
[353714101,1739995866445,-601.71,0.00011983,2]
[353714102,1739995866454,-588.31,0.00011983,2]
[353714103,1739995866463,-597.73,0.00011983,2]
[353714104,1739995866473,-500.0,0.00011983,2]
[353714105,1739995866482,-553.99,0.00011983,2]
[353714106,1739995866491,-535.64,0.00011983,2]
[353714107,1739995866501,-504.05,0.00011983,2]
[353714108,1739995866511,-500.0,0.00011984,2]
[353714109,1739995866520,-150.0,0.00011994,2]
[353714110,1739995866530,-5004.98375569,0.00011997,2]
[353714111,1739995866539,-9372.88901949,0.00012,2]
[353714112,1739995866549,-17252.65118416,0.00012,2]
[353714113,1739995866559,-1000.0,0.00012,2]
[353714114,1739995866569,-1600.0,0.00012,2]
[353714115,1739995866579,-1725.0,0.00012,2]
[353714116,1739995866588,-639.0,0.00012,2]
[353714117,1739995866598,-593.74,0.00012002,2]
[353714118,1739995866607,-542.9,0.00012002,2]
[353714119,1739995866617,-571.96,0.00012002,2]
[353714120,1739995866626,-941.65,0.00012002,2]
[353714121,1739995866635,-2238.61,0.00012002,2]
[353714122,1739995866646,-565.65,0.00012002,2]
[353714123,1739995866656,-677.86,0.00012002,2]
[353714124,1739995866665,-500.0,0.00012002,2]
[353714125,1739995866674,-705.04,0.00012002,2]
[353714126,1739995866683,-500.0,0.00012002,2]
[353714127,1739995866694,-636.09,0.00012002,2]
[353714128,1739995866703,-771.98,0.00012002,2]
[353714129,1739995866712,-723.14,0.00012002,2]
[353714130,1739995866721,-662.74,0.00012002,2]
[353714131,1739995866731,-1719.04,0.00012002,2]
[353714132,1739995866742,-500.0,0.00012002,2]
[353714133,1739995866753,-177.6307218,0.00012018,2]
[353714134,1739995866762,-1000.0,0.00012021,2]
[353714135,1739995866771,-500.0,0.0001204,2]
[353714136,1739995866782,-2000.0,0.0001204,2]
[353714137,1739995866791,-200.0,0.0001204,2]
[353714138,1739995866800,-800.0,0.00012054,2]
[353714139,1739995866810,-2500.0,0.00012054,2]
[353714140,1739995866819,-166.32,0.00012055,2]
[353714141,1739995866829,-439.19,0.00012055,2]
[353714142,1739995866838,-300.0,0.00012055,2]
[353714143,1739995866848,-439.19,0.00012055,2]
[353714144,1739995866858,-986.97,0.00012055,2]
[353714145,1739995866867,-986.97,0.00012055,2]
[353714146,1739995866876,-439.19,0.00012055,2]
[353714147,1739995866886,-439.19,0.00012055,2]
[353714148,1739995866895,-986.97,0.00012055,2]
[353714149,1739995866905,-986.97,0.00012055,2]
[353714150,1739995866916,-438.79,0.00012055,2]
[353714151,1739995866927,-500.0,0.00012066,2]
[353714152,1739995866938,-500.0,0.00012066,2]
[353714153,1739995866948,-533.42,0.00012066,2]
[353714154,1739995866958,-500.0,0.00012066,2]
[353714155,1739995866968,-500.0,0.00012066,2]
[353714156,1739995866977,-500.0,0.00012066,2]
[353714157,1739995866987,-500.0,0.00012066,2]
[353714158,1739995866996,-505.76,0.00012066,2]
[353714159,1739995867008,-500.0,0.00012066,2]
[353714160,1739995867017,-500.0,0.00012066,2]
[353714161,1739995867027,-500.0,0.00012066,2]
[353714162,1739995867037,-500.0,0.00012066,2]
[353714163,1739995867046,-500.0,0.00012066,2]
[353714164,1739995867056,-500.0,0.00012066,2]
[353714165,1739995867066,-500.0,0.00012066,2]
[353714166,1739995867076,-500.0,0.00012066,2]
[353714167,1739995867086,-587.31,0.00012066,2]
[353714168,1739995867099,-500.0,0.00012066,2]
[353714169,1739995867109,-585.71,0.00012066,2]
[353714170,1739995867119,-524.38,0.00012066,2]
[353714171,1739995867128,-500.0,0.00012066,2]
[353714172,1739995867139,-500.0,0.00012066,2]
[353714173,1739995867148,-500.0,0.00012066,2]
[353714174,1739995867158,-314.97662,0.00012066,2]
[353714175,1739995867167,-500.0,0.00012066,2]
[353714176,1739995867177,-500.0,0.00012066,2]
[353714177,1739995867189,-500.0,0.00012066,2]
[353714178,1739995867199,-522.39,0.00012066,2]
[353714179,1739995867208,-500.0,0.00012066,2]
[353714180,1739995867217,-230.212476,0.00012066,2]
[353714181,1739995867227,-500.0,0.00012066,2]
[353714182,1739995867236,-500.0,0.00012066,2]
[353714183,1739995867245,-714.19,0.00012066,2]
[353714184,1739995867255,-500.0,0.00012066,2]
[353714185,1739995867265,-500.0,0.00012066,2]
[353714186,1739995867275,-500.0,0.00012066,2]
[353714187,1739995867285,-500.0,0.00012066,2]
[353714188,1739995867295,-500.0,0.00012066,2]
[353714189,1739995867305,-165.039927,0.00012066,2]
[353714190,1739995867314,-500.0,0.00012066,2]
[353714191,1739995867324,-500.0,0.00012066,2]
[353714192,1739995867334,-563.2,0.00012066,2]
[353714193,1739995867344,-500.0,0.00012066,2]
[353714194,1739995867354,-483.42,0.00012066,2]
[353714195,1739995867363,-500.0,0.00012066,2]
[353714196,1739995867373,-500.0,0.00012066,2]
[353714197,1739995867383,-500.0,0.00012066,2]
[353714198,1739995867393,-500.0,0.00012066,2]
[353714199,1739995867404,-500.0,0.00012066,2]
[353714200,1739995867414,-1172.61,0.00012066,2]
[353714201,1739995867424,-500.0,0.00012066,2]
[353714202,1739995867434,-500.0,0.00012066,2]
[353714203,1739995867445,-879.09,0.00012066,2]
[353714204,1739995867455,-737.96,0.00012066,2]
[353714205,1739995867464,-500.0,0.00012066,2]
[353714206,1739995867477,-962.32,0.00012066,2]
[353714207,1739995867487,-538.45,0.00012066,2]
[353714208,1739995867496,-509.59,0.00012066,2]
[353714209,1739995867506,-500.0,0.00012066,2]
[353714210,1739995867516,-546.67,0.00012066,2]
[353714211,1739995867526,-840.65,0.00012066,2]
[353714212,1739995867536,-500.0,0.00012066,2]
[353714213,1739995867546,-1437.42,0.00012066,2]
[353714214,1739995867557,-1356.54,0.00012066,2]
[353714215,1739995867566,-500.0,0.00012066,2]
[353714216,1739995867577,-785.45,0.00012066,2]
[353714217,1739995867587,-203.44335792,0.00012066,2]
[353714218,1739995867597,-1209.73,0.00012066,2]
[353714219,1739995867607,-690.95,0.00012066,2]
[353714220,1739995867617,-1489.16,0.00012066,2]
[353714221,1739995867627,-807.67,0.00012066,2]
[353714222,1739995867637,-1423.58,0.00012066,2]
[353714223,1739995867648,-843.14,0.00012066,2]
[353714224,1739995867659,-198.268447,0.00012066,2]
[353714225,1739995867670,-677.57,0.00012066,2]
[353714226,1739995867680,-945.16,0.00012066,2]
[353714227,1739995867693,-3452.77,0.00012066,2]
[353714228,1739995867703,-752.33,0.00012066,2]
[353714229,1739995867714,-815.95,0.00012066,2]
[353714230,1739995867724,-932.21,0.00012066,2]
[353714231,1739995867735,-626.91,0.00012066,2]
[353714232,1739995867746,-662.97,0.00012066,2]
[353714233,1739995867756,-787.68,0.00012066,2]
[353714234,1739995867766,-643.58,0.00012066,2]
[353714235,1739995867776,-1571.8,0.00012066,2]
[353714236,1739995867785,-737.13,0.00012066,2]
[353714237,1739995867796,-500.0,0.00012066,2]
[353714238,1739995867805,-740.58,0.00012066,2]
[353714239,1739995867816,-584.39,0.00012066,2]
[353714240,1739995867826,-715.97,0.00012066,2]
[353714241,1739995867836,-734.84,0.00012066,2]
[353714242,1739995867846,-802.39,0.00012066,2]
[353714243,1739995867856,-697.67,0.00012066,2]
[353714244,1739995867867,-756.21,0.00012066,2]
[353714245,1739995867877,-500.0,0.00012066,2]
[353714246,1739995867887,-500.0,0.00012066,2]
[353714247,1739995867897,-937.95,0.00012066,2]
[353714248,1739995867907,-716.59,0.00012066,2]
[353714249,1739995867917,-588.54,0.00012066,2]
[353714250,1739995867928,-500.0,0.00012066,2]
[353714251,1739995867939,-1087.14,0.00012066,2]
[353714252,1739995867949,-615.01,0.00012066,2]
[353714253,1739995867959,-743.19,0.00012066,2]
[353714254,1739995867970,-1762.82,0.00012066,2]
[353714255,1739995867980,-1029.99,0.00012066,2]
[353714256,1739995867991,-963.52,0.00012066,2]
[353714257,1739995868001,-1039.67,0.00012066,2]
[353714258,1739995868011,-500.0,0.00012066,2]
[353714259,1739995868021,-500.0,0.00012066,2]
[353714260,1739995868030,-500.0,0.00012066,2]
[353714261,1739995868040,-1014.84,0.00012066,2]
[353714262,1739995868050,-898.51,0.00012066,2]
[353714263,1739995868060,-1434.81,0.00012066,2]
[353714264,1739995868071,-802.62,0.00012066,2]
[353714265,1739995868081,-1157.13,0.00012066,2]
[353714266,1739995868093,-1176.33,0.00012066,2]
[353714267,1739995868103,-1126.62,0.00012066,2]
[353714268,1739995868113,-588.95,0.00012066,2]
[353714269,1739995868124,-251.10834365,0.00012066,2]
[353714270,1739995868135,-500.0,0.00012066,2]
[353714271,1739995868145,-865.56,0.00012066,2]
[353714272,1739995868155,-1010.38,0.00012066,2]
[353714273,1739995868166,-500.0,0.00012066,2]
[353714274,1739995868177,-692.91,0.00012066,2]
[353714275,1739995868187,-500.0,0.00012066,2]
[353714276,1739995868199,-500.0,0.00012066,2]
[353714277,1739995868209,-704.62,0.00012066,2]
[353714278,1739995868220,-500.0,0.00012066,2]
[353714279,1739995868230,-1732.65,0.00012066,2]
[353714280,1739995868241,-500.0,0.00012066,2]
[353714281,1739995868251,-920.03,0.00012066,2]
[353714282,1739995868262,-581.74,0.00012066,2]
[353714283,1739995868273,-601.71,0.00012066,2]
[353714284,1739995868283,-588.31,0.00012066,2]
[353714285,1739995868294,-597.73,0.00012066,2]
[353714286,1739995868305,-500.0,0.00012066,2]
[353714287,1739995868315,-553.99,0.00012066,2]
[353714288,1739995868326,-535.64,0.00012066,2]
[353714289,1739995868336,-504.05,0.00012066,2]
[353714290,1739995868347,-548.27803137,0.00012067,2]
[353714291,1739995868358,-774.73,0.00012082,2]
[353714292,1739995868368,-593.74,0.00012084,2]
[353714293,1739995868378,-542.9,0.00012084,2]
[353714294,1739995868388,-571.96,0.00012084,2]
[353714295,1739995868398,-941.65,0.00012084,2]
[353714296,1739995868407,-2238.61,0.00012084,2]
[353714297,1739995868417,-565.65,0.00012084,2]
[353714298,1739995868427,-677.86,0.00012084,2]
[353714299,1739995868437,-500.0,0.00012084,2]
[353714300,1739995868451,-705.04,0.00012084,2]
[353714301,1739995868462,-500.0,0.00012084,2]
[353714302,1739995868472,-636.09,0.00012084,2]
[353714303,1739995868482,-771.98,0.00012084,2]
[353714304,1739995868491,-723.14,0.00012084,2]
[353714305,1739995868502,-662.74,0.00012084,2]
[353714306,1739995868512,-1719.04,0.00012084,2]
[353714307,1739995868522,-500.0,0.00012084,2]
[353714308,1739995868532,-11265.40556332,0.00012084,2]
[353714309,1739995868542,-150.0,0.00012096,2]
[353714310,1739995868552,-2101.06236,0.000121,2]
[353714311,1739995868562,-500.0,0.0001214,2]
[353714312,1739995868571,-370393.98000839,0.00012148,3]
[353714313,1739995868581,-500.0,0.00012148,2]
[353714314,1739995868591,-500.0,0.00012148,2]
[353714315,1739995868601,-533.42,0.00012148,2]
[353714316,1739995868611,-500.0,0.00012148,2]
[353714317,1739995868622,-500.0,0.00012148,2]
[353714318,1739995868632,-500.0,0.00012148,2]
[353714319,1739995868641,-500.0,0.00012148,2]
[353714320,1739995868651,-505.76,0.00012148,2]
[353714321,1739995868662,-500.0,0.00012148,2]
[353714322,1739995868672,-500.0,0.00012148,2]
[353714323,1739995868682,-500.0,0.00012148,2]
[353714324,1739995868692,-500.0,0.00012148,2]
[353714325,1739995868702,-500.0,0.00012148,2]
[353714326,1739995868712,-500.0,0.00012148,2]
[353714327,1739995868722,-500.0,0.00012148,2]
[353714328,1739995868733,-500.0,0.00012148,2]
[353714329,1739995868743,-587.31,0.00012148,2]
[353714330,1739995868753,-500.0,0.00012148,2]
[353714331,1739995868763,-585.71,0.00012148,2]
[353714332,1739995868773,-524.38,0.00012148,2]
[353714333,1739995868783,-500.0,0.00012148,2]
[353714334,1739995868794,-500.0,0.00012148,2]
[353714335,1739995868803,-500.0,0.00012148,2]
[353714336,1739995868813,-314.97662,0.00012148,2]
[353714337,1739995868823,-500.0,0.00012148,2]
[353714338,1739995868833,-437.36283834,0.00012148,2]
[353714339,1739995868843,-500.0,0.00012148,2]
[353714340,1739995868853,-522.39,0.00012148,2]
[353714341,1739995868863,-500.0,0.00012148,2]
[353714342,1739995868873,-230.212476,0.00012148,2]
[353714343,1739995868883,-157.423366,0.00012148,2]
[353714344,1739995868893,-500.0,0.00012148,2]
[353714345,1739995868903,-500.0,0.00012148,2]
[353714346,1739995868913,-714.19,0.00012148,2]
[353714347,1739995868924,-500.0,0.00012148,2]
[353714348,1739995868934,-500.0,0.00012148,2]
[353714349,1739995868945,-500.0,0.00012148,2]
[353714350,1739995868955,-500.0,0.00012148,2]
[353714351,1739995868966,-500.0,0.00012148,2]
[353714352,1739995868976,-500.0,0.00012148,2]
[353714353,1739995868985,-500.0,0.00012148,2]
[353714354,1739995868995,-563.2,0.00012148,2]
[353714355,1739995869006,-500.0,0.00012148,2]
[353714356,1739995869016,-500.0,0.00012148,2]
[353714357,1739995869026,-500.0,0.00012148,2]
[353714358,1739995869036,-500.0,0.00012148,2]
[353714359,1739995869047,-500.0,0.00012148,2]
[353714360,1739995869058,-500.0,0.00012148,2]
[353714361,1739995869068,-1172.61,0.00012148,2]
[353714362,1739995869079,-500.0,0.00012148,2]
[353714363,1739995869091,-500.0,0.00012148,2]
[353714364,1739995869303,-879.09,0.00012148,2]
[353714365,1739995869317,-737.96,0.00012148,2]
[353714366,1739995869328,-500.0,0.00012148,2]
[353714367,1739995869338,-962.32,0.00012148,2]
[353714368,1739995869349,-538.45,0.00012148,2]
[353714369,1739995869359,-509.59,0.00012148,2]
[353714370,1739995869369,-500.0,0.00012148,2]
[353714371,1739995869379,-546.67,0.00012148,2]
[353714372,1739995869389,-840.65,0.00012148,2]
[353714373,1739995869400,-500.0,0.00012148,2]
[353714374,1739995869410,-1437.42,0.00012148,2]
[353714375,1739995869419,-1356.54,0.00012148,2]
[353714376,1739995869430,-500.0,0.00012148,2]
[353714377,1739995869440,-785.45,0.00012148,2]
[353714378,1739995869450,-1209.73,0.00012148,2]
[353714379,1739995869459,-690.95,0.00012148,2]
[353714380,1739995869468,-1489.16,0.00012148,2]
[353714381,1739995869478,-807.67,0.00012148,2]
[353714382,1739995869488,-1423.58,0.00012148,2]
[353714383,1739995869498,-843.14,0.00012148,2]
[353714384,1739995869508,-677.57,0.00012148,2]
[353714385,1739995869518,-945.16,0.00012148,2]
[353714386,1739995869528,-3452.77,0.00012148,2]
[353714387,1739995869538,-752.33,0.00012148,2]
[353714388,1739995869548,-815.95,0.00012148,2]
[353714389,1739995869558,-932.21,0.00012148,2]
[353714390,1739995869567,-626.91,0.00012148,2]
[353714391,1739995869578,-662.97,0.00012148,2]
[353714392,1739995869587,-787.68,0.00012148,2]
[353714393,1739995869597,-643.58,0.00012148,2]
[353714394,1739995869607,-1571.8,0.00012148,2]
[353714395,1739995869616,-737.13,0.00012148,2]
[353714396,1739995869627,-500.0,0.00012148,2]
[353714397,1739995869637,-740.58,0.00012148,2]
[353714398,1739995869647,-584.39,0.00012148,2]
[353714399,1739995869657,-715.97,0.00012148,2]
[353714400,1739995869667,-734.84,0.00012148,2]
[353714401,1739995869676,-802.39,0.00012148,2]
[353714402,1739995869686,-697.67,0.00012148,2]
[353714403,1739995869698,-756.21,0.00012148,2]
[353714404,1739995869709,-500.0,0.00012148,2]
[353714405,1739995869720,-500.0,0.00012148,2]
[353714406,1739995869730,-937.95,0.00012148,2]
[353714407,1739995869740,-716.59,0.00012148,2]
[353714408,1739995869750,-588.54,0.00012148,2]
[353714409,1739995869761,-500.0,0.00012148,2]
[353714410,1739995869771,-1087.14,0.00012148,2]
[353714411,1739995869781,-615.01,0.00012148,2]
[353714412,1739995869791,-743.19,0.00012148,2]
[353714413,1739995869801,-1762.82,0.00012148,2]
[353714414,1739995869811,-1029.99,0.00012148,2]
[353714415,1739995869822,-963.52,0.00012148,2]
[353714416,1739995869832,-1039.67,0.00012148,2]
[353714417,1739995869842,-500.0,0.00012148,2]
[353714418,1739995869851,-500.0,0.00012148,2]
[353714419,1739995869861,-500.0,0.00012148,2]
[353714420,1739995869871,-1014.84,0.00012148,2]
[353714421,1739995869880,-898.51,0.00012148,2]
[353714422,1739995869890,-1434.81,0.00012148,2]
[353714423,1739995869900,-802.62,0.00012148,2]
[353714424,1739995869910,-1157.13,0.00012148,2]
[353714425,1739995869921,-1176.33,0.00012148,2]
[353714426,1739995869930,-1126.62,0.00012148,2]
[353714427,1739995869942,-588.95,0.00012148,2]
[353714428,1739995869954,-500.0,0.00012148,2]
[353714429,1739995869964,-865.56,0.00012148,2]
[353714430,1739995869975,-1010.38,0.00012148,2]
[353714431,1739995869985,-500.0,0.00012148,2]
[353714432,1739995869996,-692.91,0.00012148,2]
[353714433,1739995870006,-500.0,0.00012148,2]
[353714434,1739995870015,-500.0,0.00012148,2]
[353714435,1739995870026,-704.62,0.00012148,2]
[353714436,1739995870037,-500.0,0.00012148,2]
[353714437,1739995870046,-1732.65,0.00012148,2]
[353714438,1739995870056,-398.16434721,0.00012148,2]
[353714439,1739995870066,-920.03,0.00012148,2]
[353714440,1739995870076,-581.74,0.00012148,2]
[353714441,1739995870087,-601.71,0.00012148,2]
[353714442,1739995870101,-588.31,0.00012148,2]
[353714443,1739995870110,-597.73,0.00012148,2]
[353714444,1739995870119,-500.0,0.00012148,2]
[353714445,1739995870131,-553.99,0.00012148,2]
[353714446,1739995870141,-535.64,0.00012148,2]
[353714447,1739995870151,-504.05,0.00012148,2]
[353714448,1739995870162,-593.74,0.00012167,2]
[353714449,1739995870173,-542.9,0.00012167,2]
[353714450,1739995870183,-571.96,0.00012167,2]
[353714451,1739995870192,-941.65,0.00012167,2]
[353714452,1739995870202,-2238.61,0.00012167,2]
[353714453,1739995870212,-565.65,0.00012167,2]
[353714454,1739995870222,-677.86,0.00012167,2]
[353714455,1739995870232,-500.0,0.00012167,2]
[353714456,1739995870242,-705.04,0.00012167,2]
[353714457,1739995870251,-500.0,0.00012167,2]
[353714458,1739995870261,-636.09,0.00012167,2]
[353714459,1739995870270,-771.98,0.00012167,2]
[353714460,1739995870280,-723.14,0.00012167,2]
[353714461,1739995870290,-662.74,0.00012167,2]
[353714462,1739995870299,-1719.04,0.00012167,2]
[353714463,1739995870309,-500.0,0.00012167,2]
[353714464,1739995870319,-204.0,0.0001217,2]
[353714465,1739995870329,-215.0,0.0001217,2]
[353714466,1739995870338,-367.0,0.000122,2]
[353714467,1739995870347,-747.0,0.000122,2]
[353714468,1739995870357,-9696.45179954,0.00012206,2]
[353714469,1739995870367,-1060.0,0.00012209,2]
[353714470,1739995870377,-500.0,0.0001223,2]
[353714471,1739995870387,-500.0,0.0001223,2]
[353714472,1739995870396,-533.42,0.0001223,2]
[353714473,1739995870407,-500.0,0.0001223,2]
[353714474,1739995870416,-500.0,0.0001223,2]
[353714475,1739995870426,-500.0,0.0001223,2]
[353714476,1739995870436,-500.0,0.0001223,2]
[353714477,1739995870447,-505.76,0.0001223,2]
[353714478,1739995870456,-500.0,0.0001223,2]
[353714479,1739995870467,-607.51949831,0.0001223,2]
[353714480,1739995870476,-500.0,0.0001223,2]
[353714481,1739995870487,-500.0,0.0001223,2]
[353714482,1739995870497,-462.65687473,0.0001223,2]
[353714483,1739995870507,-500.0,0.0001223,2]
[353714484,1739995870516,-500.0,0.0001223,2]
[353714485,1739995870526,-500.0,0.0001223,2]
[353714486,1739995870535,-587.31,0.0001223,2]
[353714487,1739995870545,-500.0,0.0001223,2]
[353714488,1739995870554,-585.71,0.0001223,2]
[353714489,1739995870564,-524.38,0.0001223,2]
[353714490,1739995870574,-500.0,0.0001223,2]
[353714491,1739995870584,-500.0,0.0001223,2]
[353714492,1739995870593,-500.0,0.0001223,2]
[353714493,1739995870603,-314.97662,0.0001223,2]
[353714494,1739995870613,-500.0,0.0001223,2]
[353714495,1739995870623,-500.0,0.0001223,2]
[353714496,1739995870633,-522.39,0.0001223,2]
[353714497,1739995870643,-500.0,0.0001223,2]
[353714498,1739995870653,-230.212476,0.0001223,2]
[353714499,1739995870663,-500.0,0.0001223,2]
[353714500,1739995870673,-500.0,0.0001223,2]
[353714501,1739995870683,-714.19,0.0001223,2]
[353714502,1739995870694,-500.0,0.0001223,2]
[353714503,1739995870704,-500.0,0.0001223,2]
[353714504,1739995870714,-500.0,0.0001223,2]
[353714505,1739995870723,-500.0,0.0001223,2]
[353714506,1739995870733,-500.0,0.0001223,2]
[353714507,1739995870743,-500.0,0.0001223,2]
[353714508,1739995870753,-500.0,0.0001223,2]
[353714509,1739995870763,-563.2,0.0001223,2]
[353714510,1739995870773,-500.0,0.0001223,2]
[353714511,1739995870783,-500.0,0.0001223,2]
[353714512,1739995870792,-500.0,0.0001223,2]
[353714513,1739995870802,-500.0,0.0001223,2]
[353714514,1739995870812,-500.0,0.0001223,2]
[353714515,1739995870822,-500.0,0.0001223,2]
[353714516,1739995870832,-1172.61,0.0001223,2]
[353714517,1739995870841,-594.09031068,0.0001223,2]
[353714518,1739995870851,-500.0,0.0001223,2]
[353714519,1739995870861,-879.09,0.0001223,2]
[353714520,1739995870871,-737.96,0.0001223,2]
[353714521,1739995870880,-500.0,0.0001223,2]
[353714522,1739995870890,-962.32,0.0001223,2]